fUST/lending_fUST_20260608
["ID","MTS","AMOUNT","RATE_DAILY","PERIOD"]
[424423168,1780869042000,-500.0,0.00019452,2]
[424423170,1780869042000,-500.0,0.00019452,2]
[424423173,1780869042000,-788.78,0.00019452,2]
[424423175,1780869042000,-500.0,0.00019452,2]
[424423171,1780869042000,-1213.26,0.00019452,2]
[424423177,1780869042000,-500.0,0.00019452,2]
[424423176,1780869042000,-537.72,0.00019452,2]
[424423172,1780869042000,-613.15,0.00019452,2]
[424423178,1780869042000,-1501.29,0.00019452,2]
[424423180,1780869042000,-500.0,0.00019452,2]
[424423191,1780869042000,-500.0,0.00019452,2]
[424423192,1780869042000,-500.0,0.00019452,2]
[424423189,1780869042000,-501.84,0.00019452,2]
[424423182,1780869042000,-1152.93,0.00019452,2]
[424423185,1780869042000,-5189.78,0.00019452,2]
[424423187,1780869042000,-500.0,0.00019452,2]
[424423194,1780869042000,-297.99680881,0.00019452,2]
[424423184,1780869042000,-500.0,0.00019452,2]
[424423183,1780869042000,-3026.06,0.00019452,2]
[424423179,1780869042000,-500.0,0.00019452,2]
[424423181,1780869042000,-591.61,0.00019452,2]
[424423186,1780869042000,-500.0,0.00019452,2]
[424423273,1780869043000,-1473.25,0.00019726,2]
[424423274,1780869043000,-500.0,0.00019726,2]
[424423266,1780869043000,-649.021778,0.00019622,2]
[424423276,1780869043000,-500.0,0.00019726,2]
[424423267,1780869043000,-825.0,0.0001967,2]
[424423263,1780869043000,-160.0,0.000196,2]
[424423261,1780869043000,-209.6108,0.00019589,2]
[424423262,1780869043000,-300.0,0.00019589,3]
[424423257,1780869043000,-501.68365608,0.00019501,2]
[424423256,1780869043000,-500.0,0.00019488,2]
[424423259,1780869043000,-317.87204038,0.00019552,2]
[424423275,1780869043000,-500.0,0.00019726,2]
[424423260,1780869043000,-300.17061541,0.00019563,2]
[424423278,1780869043000,-350.26588343,0.00019726,2]
[424423281,1780869043000,-451.63310971,0.00019726,2]
[424423268,1780869043000,-317.87204038,0.00019688,2]
[424423272,1780869043000,-500.0,0.00019726,2]
[424423269,1780869043000,-795.0,0.000197,2]
[424423270,1780869043000,-300.0284359,0.0001971,2]
[424423271,1780869043000,-1966.8781,0.00019726,2]
[424423280,1780869043000,-500.0,0.00019726,2]
[424423291,1780869043000,-500.0,0.00019726,2]
[424423290,1780869043000,-500.0,0.00019726,2]
[424423292,1780869043000,-574.63,0.00019726,2]
[424423279,1780869043000,-500.0,0.00019726,2]
[424423283,1780869043000,-500.0,0.00019726,2]
[424423282,1780869043000,-698.12,0.00019726,2]
[424423264,1780869043000,-825.997251,0.000196,2]
[424423284,1780869043000,-937.55,0.00019726,2]
[424423277,1780869043000,-500.0,0.00019726,2]
[424423254,1780869043000,-543.08,0.00019452,2]
[424423240,1780869043000,-10043.68,0.00019452,2]
[424423265,1780869043000,-1491.994503,0.000196,2]
[424423225,1780869043000,-500.0,0.00019452,2]
[424423227,1780869043000,-500.0,0.00019452,2]
[424423285,1780869043000,-500.0,0.00019726,2]
[424423226,1780869043000,-500.0,0.00019452,2]
[424423229,1780869043000,-540.95,0.00019452,2]
[424423228,1780869043000,-500.0,0.00019452,2]
[424423233,1780869043000,-9624.35,0.00019452,2]
[424423231,1780869043000,-500.0,0.00019452,2]
[424423234,1780869043000,-2961.34,0.00019452,2]
[424423236,1780869043000,-2830.1,0.00019452,2]
[424423232,1780869043000,-500.0,0.00019452,2]
[424423230,1780869043000,-3841.92,0.00019452,2]
[424423235,1780869043000,-2488.17,0.00019452,2]
[424423238,1780869043000,-500.0,0.00019452,2]
[424423239,1780869043000,-500.0,0.00019452,2]
[424423242,1780869043000,-11131.41,0.00019452,2]
[424423241,1780869043000,-530.91,0.00019452,2]
[424423243,1780869043000,-500.0,0.00019452,2]
[424423250,1780869043000,-629.17,0.00019452,2]
[424423249,1780869043000,-800.51,0.00019452,2]
[424423251,1780869043000,-907.17,0.00019452,2]
[424423244,1780869043000,-869.63,0.00019452,2]
[424423247,1780869043000,-1468.1,0.00019452,2]
[424423245,1780869043000,-500.0,0.00019452,2]
[424423246,1780869043000,-1984.29,0.00019452,2]
[424423248,1780869043000,-500.0,0.00019452,2]
[424423253,1780869043000,-500.0,0.00019452,2]
[424423252,1780869043000,-604.55,0.00019452,2]
[424423258,1780869043000,-152.0,0.00019526,2]
[424423255,1780869043000,-209.88637444,0.00019488,2]
[424423237,1780869043000,-5811.1,0.00019452,2]
[424423287,1780869043000,-867.15,0.00019726,2]
[424423289,1780869043000,-500.0,0.00019726,2]
[424423322,1780869043000,-1467.89,0.00019726,2]
[424423324,1780869043000,-500.0,0.00019726,2]
[424423328,1780869043000,-500.0,0.00019726,2]
[424423329,1780869043000,-500.0,0.00019726,2]
[424423331,1780869043000,-500.0,0.00019726,2]
[424423333,1780869043000,-500.0,0.00019726,2]
[424423336,1780869043000,-1345.16,0.00019726,2]
[424423339,1780869043000,-805.5,0.00019726,2]
[424423332,1780869043000,-500.0,0.00019726,2]
[424423335,1780869043000,-500.0,0.00019726,2]
[424423337,1780869043000,-500.0,0.00019726,2]
[424423338,1780869043000,-500.0,0.00019726,2]
[424423334,1780869043000,-500.0,0.00019726,2]
[424423340,1780869043000,-500.0,0.00019726,2]
[424423326,1780869043000,-500.0,0.00019726,2]
[424423342,1780869043000,-500.0,0.00019726,2]
[424423344,1780869043000,-688.33,0.00019726,2]
[424423343,1780869043000,-500.0,0.00019726,2]
[424423346,1780869043000,-833.24,0.00019726,2]
[424423356,1780869043000,-500.0,0.00019726,2]
[424423345,1780869043000,-721.91,0.00019726,2]
[424423347,1780869043000,-646.17,0.00019726,2]
[424423348,1780869043000,-500.0,0.00019726,2]
[424423351,1780869043000,-500.0,0.00019726,2]
[424423353,1780869043000,-500.0,0.00019726,2]
[424423349,1780869043000,-1522.61,0.00019726,2]
[424423350,1780869043000,-990.14,0.00019726,2]
[424423352,1780869043000,-500.0,0.00019726,2]
[424423286,1780869043000,-643.92,0.00019726,2]
[424423355,1780869043000,-500.0,0.00019726,2]
[424423341,1780869043000,-500.0,0.00019726,2]
[424423325,1780869043000,-3001.14,0.00019726,2]
[424423354,1780869043000,-500.0,0.00019726,2]
[424423327,1780869043000,-579.03,0.00019726,2]
[424423323,1780869043000,-884.57,0.00019726,2]
[424423295,1780869043000,-1603.72,0.00019726,2]
[424423293,1780869043000,-500.0,0.00019726,2]
[424423297,1780869043000,-500.0,0.00019726,2]
[424423298,1780869043000,-500.0,0.00019726,2]
[424423299,1780869043000,-500.0,0.00019726,2]
[424423305,1780869043000,-500.0,0.00019726,2]
[424423304,1780869043000,-578.4,0.00019726,2]
[424423300,1780869043000,-576.1,0.00019726,2]
[424423294,1780869043000,-500.0,0.00019726,2]
[424423303,1780869043000,-1374.44,0.00019726,2]
[424423301,1780869043000,-500.0,0.00019726,2]
[424423302,1780869043000,-500.0,0.00019726,2]
[424423308,1780869043000,-617.4,0.00019726,2]
[424423306,1780869043000,-761.21,0.00019726,2]
[424423296,1780869043000,-500.0,0.00019726,2]
[424423317,1780869043000,-500.0,0.00019726,2]
[424423307,1780869043000,-857.43,0.00019726,2]
[424423330,1780869043000,-500.0,0.00019726,2]
[424423320,1780869043000,-500.0,0.00019726,2]
[424423319,1780869043000,-1876.89,0.00019726,2]
[424423315,1780869043000,-500.0,0.00019726,2]
[424423316,1780869043000,-932.05,0.00019726,2]
[424423321,1780869043000,-500.0,0.00019726,2]
[424423310,1780869043000,-500.0,0.00019726,2]
[424423311,1780869043000,-1388.69,0.00019726,2]
[424423312,1780869043000,-1079.58,0.00019726,2]
[424423313,1780869043000,-703.88,0.00019726,2]
[424423318,1780869043000,-1497.15,0.00019726,2]
[424423309,1780869043000,-319.71941382,0.00019726,2]
[424423314,1780869043000,-500.0,0.00019726,2]
[424423407,1780869044000,-1152.93,0.00019726,2]
[424423408,1780869044000,-3026.06,0.00019726,2]
[424423399,1780869044000,-500.0,0.00019726,2]
[424423395,1780869044000,-500.0,0.00019726,2]
[424423392,1780869044000,-500.0,0.00019726,2]
[424423391,1780869044000,-500.0,0.00019726,2]
[424423396,1780869044000,-1213.26,0.00019726,2]
[424423390,1780869044000,-500.0,0.00019726,2]
[424423397,1780869044000,-613.15,0.00019726,2]
[424423388,1780869044000,-44003.63,0.00019726,2]
[424423398,1780869044000,-788.78,0.00019726,2]
[424423389,1780869044000,-1871.94,0.00019726,2]
[424423394,1780869044000,-500.0,0.00019726,2]
[424423404,1780869044000,-500.0,0.00019726,2]
[424423410,1780869044000,-5189.78,0.00019726,2]
[424423403,1780869044000,-1501.29,0.00019726,2]
[424423400,1780869044000,-500.0,0.00019726,2]
[424423406,1780869044000,-591.61,0.00019726,2]
[424423405,1780869044000,-461.36501822,0.00019726,2]
[424423401,1780869044000,-537.72,0.00019726,2]
[424423402,1780869044000,-500.0,0.00019726,2]
[424423411,1780869044000,-500.0,0.00019726,2]
[424423414,1780869044000,-501.84,0.00019726,2]
[424423412,1780869044000,-500.0,0.00019726,2]
[424423413,1780869044000,-2804.88,0.00019726,2]
[424423416,1780869044000,-500.0,0.00019726,2]
[424423420,1780869044000,-500.0,0.00019726,2]
[424423393,1780869044000,-630.47859018,0.00019726,2]
[424423409,1780869044000,-500.0,0.00019726,2]
[424423385,1780869044000,-6523.99,0.00019726,2]
[424423382,1780869044000,-1264.47,0.00019726,2]
[424423386,1780869044000,-3603.39,0.00019726,2]
[424423417,1780869044000,-500.0,0.00019726,2]
[424423357,1780869044000,-1865.65,0.00019726,2]
[424423358,1780869044000,-985.93,0.00019726,2]
[424423359,1780869044000,-644.43792411,0.00019726,2]
[424423360,1780869044000,-986.63,0.00019726,2]
[424423361,1780869044000,-576.57,0.00019726,2]
[424423362,1780869044000,-600.18,0.00019726,2]
[424423364,1780869044000,-500.0,0.00019726,2]
[424423363,1780869044000,-500.0,0.00019726,2]
[424423368,1780869044000,-500.0,0.00019726,2]
[424423365,1780869044000,-500.0,0.00019726,2]
[424423369,1780869044000,-500.0,0.00019726,2]
[424423367,1780869044000,-500.0,0.00019726,2]
[424423387,1780869044000,-500.0,0.00019726,2]
[424423366,1780869044000,-521.63,0.00019726,2]
[424423381,1780869044000,-988.87,0.00019726,2]
[424423383,1780869044000,-3109.47,0.00019726,2]
[424423370,1780869044000,-673.65,0.00019726,2]
[424423373,1780869044000,-4969.84,0.00019726,2]
[424423376,1780869044000,-640.9,0.00019726,2]
[424423374,1780869044000,-862.53,0.00019726,2]
[424423377,1780869044000,-617.30830695,0.00019726,2]
[424423372,1780869044000,-797.63,0.00019726,2]
[424423378,1780869044000,-500.0,0.00019726,2]
[424423375,1780869044000,-622.67,0.00019726,2]
[424423379,1780869044000,-4267.24,0.00019726,2]
[424423380,1780869044000,-500.0,0.00019726,2]
[424423384,1780869044000,-500.0,0.00019726,2]
[424423371,1780869044000,-500.0,0.00019726,2]
[424423415,1780869044000,-807.97,0.00019726,2]
[424423461,1780869044000,-500.0,0.00019726,2]
[424423419,1780869044000,-500.0,0.00019726,2]
[424423465,1780869044000,-11131.41,0.00019726,2]
[424423464,1780869044000,-530.91,0.00019726,2]
[424423453,1780869044000,-3841.92,0.00019726,2]
[424423466,1780869044000,-500.0,0.00019726,2]
[424423455,1780869044000,-500.0,0.00019726,2]
[424423460,1780869044000,-5811.1,0.00019726,2]
[424423458,1780869044000,-2488.17,0.00019726,2]
[424423457,1780869044000,-2961.34,0.00019726,2]
[424423456,1780869044000,-9624.35,0.00019726,2]
[424423462,1780869044000,-10043.68,0.00019726,2]
[424423478,1780869044000,-154.22,0.00019726,2]
[424423463,1780869044000,-500.0,0.00019726,2]
[424423467,1780869044000,-869.63,0.00019726,2]
[424423454,1780869044000,-500.0,0.00019726,2]
[424423468,1780869044000,-500.0,0.00019726,2]
[424423472,1780869044000,-800.51,0.00019726,2]
[424423477,1780869044000,-543.08,0.00019726,2]
[424423475,1780869044000,-604.55,0.00019726,2]
[424423471,1780869044000,-500.0,0.00019726,2]
[424423469,1780869044000,-1984.29,0.00019726,2]
[424423470,1780869044000,-1468.1,0.00019726,2]
[424423473,1780869044000,-629.17,0.00019726,2]
[424423474,1780869044000,-907.17,0.00019726,2]
[424423479,1780869044000,-151.0,0.00019727,2]
[424423482,1780869044000,-156.587,0.00019761,2]
[424423480,1780869044000,-155.0,0.00019727,2]
[424423481,1780869044000,-155.0,0.00019727,2]
[424423418,1780869044000,-500.0,0.00019726,2]
[424423476,1780869044000,-500.0,0.00019726,2]
[424423452,1780869044000,-540.95,0.00019726,2]
[424423459,1780869044000,-2830.1,0.00019726,2]
[424423450,1780869044000,-500.0,0.00019726,2]
[424423421,1780869044000,-500.0,0.00019726,2]
[424423424,1780869044000,-1274.54,0.00019726,2]
[424423423,1780869044000,-936.47,0.00019726,2]
[424423447,1780869044000,-880.95,0.00019726,2]
[424423426,1780869044000,-579.14,0.00019726,2]
[424423436,1780869044000,-5246.63,0.00019726,2]
[424423438,1780869044000,-634.90938561,0.00019726,2]
[424423437,1780869044000,-1372.18,0.00019726,2]
[424423427,1780869044000,-2728.23,0.00019726,2]
[424423428,1780869044000,-500.0,0.00019726,2]
[424423425,1780869044000,-3875.45,0.00019726,2]
[424423435,1780869044000,-500.0,0.00019726,2]
[424423434,1780869044000,-570.54886107,0.00019726,2]
[424423432,1780869044000,-500.0,0.00019726,2]
[424423431,1780869044000,-500.0,0.00019726,2]
[424423422,1780869044000,-500.0,0.00019726,2]
[424423430,1780869044000,-500.0,0.00019726,2]
[424423429,1780869044000,-700.14,0.00019726,2]
[424423440,1780869044000,-2308.4,0.00019726,2]
[424423448,1780869044000,-500.0,0.00019726,2]
[424423443,1780869044000,-7625.04,0.00019726,2]
[424423445,1780869044000,-4354.0,0.00019726,2]
[424423444,1780869044000,-500.0,0.00019726,2]
[424423446,1780869044000,-500.0,0.00019726,2]
[424423441,1780869044000,-964.98,0.00019726,2]
[424423451,1780869044000,-500.0,0.00019726,2]
[424423442,1780869044000,-500.0,0.00019726,2]
[424423439,1780869044000,-862.61,0.00019726,2]
[424423433,1780869044000,-10328.7,0.00019726,2]
[424423449,1780869044000,-500.0,0.00019726,2]
[424423488,1780869045000,-317.87204038,0.00019823,2]
[424423500,1780869045000,-436.25863458,0.00019936,2]
[424423499,1780869045000,-582.79244285,0.00019936,2]
[424423501,1780869045000,-601.08522695,0.00019936,2]
[424423510,1780869045000,-489.79746179,0.00019936,2]
[424423503,1780869045000,-293.8876919,0.00019936,2]
[424423509,1780869045000,-309.5072718,0.00019936,2]
[424423489,1780869045000,-160.0,0.00019848,3]
[424423511,1780869045000,-182.78536823,0.00019944,2]
[424423502,1780869045000,-569.12609743,0.00019936,2]
[424423496,1780869045000,-458.30443904,0.00019896,2]
[424423486,1780869045000,-14161.55373123,0.00019771,3]
[424423494,1780869045000,-230.42325555,0.00019878,2]
[424423492,1780869045000,-959.431885,0.00019868,2]
[424423495,1780869045000,-167.95419015,0.00019878,2]
[424423493,1780869045000,-294.16687457,0.00019878,2]
[424423498,1780869045000,-456.11257428,0.00019936,2]
[424423497,1780869045000,-187.41788081,0.0001991,2]
[424423487,1780869045000,-235.111721,0.00019796,2]
[424423484,1780869045000,-300.17061541,0.00019767,2]
[424423483,1780869045000,-38000.0,0.00019762,3]
[424423485,1780869045000,-38000.0,0.00019771,3]
[424423506,1780869045000,-251.20024137,0.00019936,2]
[424423490,1780869045000,-160.0,0.00019868,2]
[424423504,1780869045000,-306.74396726,0.00019936,2]
[424423491,1780869045000,-559.715942,0.00019868,2]
[424423508,1780869045000,-551.63249292,0.00019936,2]
[424423535,1780869045000,-500.0,0.00018548,2]
[424423534,1780869045000,-500.0,0.00018274,2]
[424423533,1780869045000,-500.0,0.00018,2]
[424423527,1780869045000,-411.39711273,0.0001999,2]
[424423531,1780869045000,-267993.75204825,0.0002,2]
[424423530,1780869045000,-450.48071795,0.0001999,2]
[424423532,1780869045000,-164962.12253917,0.0002,2]
[424423528,1780869045000,-540.67944842,0.0001999,2]
[424423529,1780869045000,-378.08335911,0.0001999,2]
[424423526,1780869045000,-300.17061541,0.0001997,2]
[424423536,1780869045000,-356.8499505,0.00018822,2]
[424423522,1780869045000,-242.89274588,0.00019953,2]
[424423518,1780869045000,-460.77065318,0.00019953,2]
[424423507,1780869045000,-179.03379721,0.00019936,2]
[424423516,1780869045000,-427.35732168,0.00019953,2]
[424423519,1780869045000,-479.85221424,0.00019953,2]
[424423524,1780869045000,-414.96117446,0.00019954,2]
[424423523,1780869045000,-599.5925348,0.00019953,2]
[424423513,1780869045000,-192.19809676,0.00019944,2]
[424423521,1780869045000,-395.13685241,0.00019953,2]
[424423517,1780869045000,-157.66694107,0.00019953,2]
[424423525,1780869045000,-317.87204038,0.00019958,2]
[424423520,1780869045000,-627.22800638,0.00019953,2]
[424423515,1780869045000,-216.96428918,0.00019944,2]
[424423505,1780869045000,-211.24791379,0.00019936,2]
[424423538,1780869046000,-1000.0,0.0001782,2]
[424423547,1780869954000,-985.56117813,0.00016036,2]
[424423548,1780870027000,-1274.45859268,0.00015717,2]
[424423549,1780870037000,-805.84388672,0.00015717,2]
[424423550,1780870045000,-749.55946425,0.00015717,2]
[424423573,1780870231000,-485.489841,0.00016735,2]
[424423577,1780870231000,-182.88000001,0.000176,2]
[424423571,1780870231000,-222.73503852,0.00016591,2]
[424423569,1780870231000,-676.98717926,0.0001556,2]
[424423575,1780870231000,-161.0,0.00017342,3]
[424423566,1780870231000,-4323.01282074,0.0001556,2]
[424423583,1780870231000,-160.0,0.00017671,2]
[424423591,1780870232000,-466.67436109,0.00018009,2]
[424423587,1780870232000,-361.61260437,0.00017803,2]
[424423589,1780870232000,-398.07524748,0.00017803,2]
[424423585,1780870232000,-160.0,0.00017671,2]
[424423595,1780870232000,-616.29147395,0.00018329,2]
[424423598,1780870232000,-7684.85521803,0.0001833,2]
[424423600,1780870232000,-1189.1,0.0001833,2]
[424423593,1780870232000,-500.0,0.00018329,2]
[424423651,1780870238000,-41183.0571109,0.0001833,2]
[424423650,1780870238000,-65214.48517962,0.0001833,2]
[424423649,1780870238000,-159.96134033,0.00015559,2]
[424423647,1780870238000,-245.58577127,0.00015559,2]
[424423648,1780870238000,-372.77365059,0.00015559,2]
[424423662,1780870240000,-303.30071407,0.00015403,2]
[424423661,1780870240000,-897.16944488,0.00015403,2]
[424423688,1780870747000,335.82,8.001e-05,2]
[424423687,1780870747000,7.48,8.001e-05,2]
[424423686,1780870747000,328.34,8.001e-05,2]
[424423685,1780870747000,335.84,8.001e-05,2]
[424423684,1780870747000,335.82,8.001e-05,2]
[424423713,1780870930000,656.7,7.6e-05,2]
[424423715,1780870930000,61.61514619,7.6e-05,2]
[424423714,1780870930000,1000.0,7.6e-05,2]
[424423718,1780871153000,-1330.82620095,0.00014645,2]
[424423719,1780871153000,-300.0,0.00014793,2]
[424423722,1780871153000,-8.6280338,0.00014794,2]
[424423721,1780871153000,-500.0,0.00014794,2]
[424423720,1780871153000,-300.0,0.00014793,2]
[424423723,1780871237000,-987.3852607,0.00014646,2]
[424423725,1780871248000,-147.09089743,0.00014646,2]
[424423724,1780871248000,-271.29767067,0.000145,2]
[424423783,1780871432000,-1580.67792983,0.000145,2]
[424423789,1780871432000,-359.62239738,0.00017269,2]
[424423791,1780871432000,-243.56119121,0.00017319,7]
[424423794,1780871432000,-371.898927,0.00017773,2]
[424423785,1780871432000,-3419.32207017,0.000145,2]
[424423793,1780871432000,-2169.56103546,0.000176,2]
[424423787,1780871432000,-162.37412746,0.00016357,7]
[424423800,1780871432000,-470.2237915,0.00017896,2]
[424423798,1780871432000,-500.0,0.00017896,2]
[424423802,1780871432000,-500.0,0.00017896,2]
[424423796,1780871432000,-500.0,0.00017896,2]
[424423806,1780871432000,-1749.57808776,0.00017898,2]
[424423804,1780871432000,-1120.85082699,0.00017898,2]
[424423808,1780871432000,-10393.57077511,0.0001803,2]
[424423857,1780871439000,-356.0,0.00014499,2]
[424424228,1780871448000,-500.0,0.00014499,2]
[424424224,1780871448000,-5000.0,0.00014354,2]
[424424227,1780871448000,-144.0,0.00014499,2]
[424424230,1780871448000,-500.0,0.00014499,2]
[424424232,1780871448000,-302.57863826,0.00014499,2]
[424424236,1780871448000,-25103.77867794,0.0001803,2]
[424424254,1780871448000,-6225.26546142,0.0001803,2]
[424424234,1780871448000,-203.6426836,0.00014499,2]
[424424443,1780871511000,-5000.0,0.00014354,2]
[424424444,1780871528000,-267.39216277,0.00014499,2]
[424424458,1780872340000,-3053.76575654,0.00015973,2]
[424424463,1780872429000,-473.20452025,0.00015813,2]
[424424464,1780872429000,-689.60738969,0.00015973,2]
[424424466,1780872444000,-1256.62685377,0.00015973,2]
[424424468,1780872444000,-270.65617505,0.00016134,2]
[424424469,1780872444000,-11.94743176,0.00016134,2]
[424424467,1780872444000,-236.82415317,0.00016134,2]
[424424506,1780872632000,-267.36433862,0.00016131,2]
[424424513,1780872632000,-226.45623106,0.00017093,2]
[424424514,1780872632000,-353.48402317,0.00017093,2]
[424424509,1780872632000,-500.0,0.00016723,2]
[424424516,1780872632000,-152.0,0.00017556,7]
[424424504,1780872632000,-5000.0,0.00015973,2]
[424424510,1780872632000,-500.0,0.00016723,2]
[424424518,1780872632000,-3698.2690784,0.00017812,2]
[424424517,1780872632000,-5048.6084939,0.00017728,2]
[424424515,1780872632000,-307.57328297,0.00017093,2]
[424424508,1780872632000,-306.73877144,0.00016131,2]
[424424512,1780872632000,-161.945897,0.00017021,2]
[424424503,1780872632000,-410.52994148,0.00015327,2]
[424424511,1780872632000,-674.5083527,0.00016895,2]
[424424520,1780872632000,-9034.6440432,0.0001783,2]
[424424519,1780872632000,-21918.44103117,0.0001783,2]
[424424530,1780872632000,-198.78040395,0.00018583,2]
[424424533,1780872632000,-3682.45785753,0.000189,2]
[424424531,1780872632000,-309.915772,0.00018693,2]
[424424532,1780872632000,-5048.6084939,0.00018723,2]
[424424535,1780872632000,-6883.16513389,0.00019,2]
[424424527,1780872632000,-151.96175037,0.00018583,2]
[424424525,1780872632000,-177.34933751,0.00018583,2]
[424424534,1780872632000,-230.6641412,0.00018989,2]
[424424526,1780872632000,-178.11833558,0.00018583,2]
[424424529,1780872632000,-181.009852,0.00018583,2]
[424424528,1780872632000,-175.29593369,0.00018583,2]
[424424523,1780872632000,-295.95647851,0.00017992,2]
[424424522,1780872632000,-274.04881522,0.00017992,2]
[424424521,1780872632000,-159.614,0.0001793,2]
[424424524,1780872632000,-196.14360037,0.00018583,2]
[424424578,1780872646000,-3159.4,0.0001881,2]
[424424581,1780873331000,-324.63061348,0.00016358,2]
[424424582,1780873348000,-314.03709479,0.00016523,2]
[424424583,1780873365000,-372.3503575,0.00016523,2]
[424424585,1780873531000,-889.38163597,0.00016194,2]
[424424584,1780873531000,-303.0,0.00016032,2]
[424424586,1780873628000,-841.54068905,0.00015871,2]
[424424587,1780873629000,-749.55946425,0.00015871,2]
[424424588,1780873643000,-1324.61819479,0.00015871,2]
[424424647,1780873832000,-3914.78323592,0.00015555,2]
[424424641,1780873832000,-1085.21676408,0.00015555,2]
[424424655,1780873832000,-1958.76259704,0.00015712,2]
[424424649,1780873832000,-1550.86221854,0.00015712,2]
[424424758,1780873838000,-500.0,0.00016029,2]
[424424756,1780873838000,-500.0,0.00016029,2]
[424424753,1780873838000,-500.0,0.00016029,2]
[424424755,1780873838000,-500.0,0.00016029,2]
[424424749,1780873838000,-500.0,0.00016029,2]
[424424741,1780873838000,-372.3503575,0.00016029,2]
[424424747,1780873838000,-500.0,0.00016029,2]
[424424743,1780873838000,-500.0,0.00016029,2]
[424424745,1780873838000,-500.0,0.00016029,2]
[424424739,1780873838000,-500.0,0.00016029,2]
[424424751,1780873838000,-500.0,0.00016029,2]
[424424735,1780873838000,-500.0,0.00016029,2]
[424424737,1780873838000,-322.0010541,0.00016029,2]
[424424730,1780873838000,-500.0,0.00016029,2]
[424424728,1780873838000,-500.0,0.00016029,2]
[424424726,1780873838000,-500.0,0.00016029,2]
[424424722,1780873838000,-405.74205038,0.00016029,2]
[424424716,1780873838000,-685.1595902,0.00015938,2]
[424424718,1780873838000,-392.08616994,0.00016029,2]
[424424720,1780873838000,-500.0,0.00016029,2]
[424424713,1780873838000,-1490.37518442,0.00015712,2]
[424424715,1780873838000,-300.0,0.00015937,2]
[424424724,1780873838000,-500.0,0.00016029,2]
[424424732,1780873838000,-500.0,0.00016029,2]
[424424762,1780873838000,-500.0,0.00016029,2]
[424424760,1780873838000,-500.0,0.00016029,2]
[424424766,1780873838000,-500.0,0.00016029,2]
[424424810,1780873838000,-500.0,0.00016029,2]
[424424764,1780873838000,-500.0,0.00016029,2]
[424424804,1780873838000,-500.0,0.00016029,2]
[424424806,1780873838000,-500.0,0.00016029,2]
[424424811,1780873838000,-500.0,0.00016029,2]
[424424808,1780873838000,-500.0,0.00016029,2]
[424424802,1780873838000,-500.0,0.00016029,2]
[424424799,1780873838000,-500.0,0.00016029,2]
[424424797,1780873838000,-500.0,0.00016029,2]
[424424795,1780873838000,-500.0,0.00016029,2]
[424424793,1780873838000,-500.0,0.00016029,2]
[424424791,1780873838000,-500.0,0.00016029,2]
[424424782,1780873838000,-500.0,0.00016029,2]
[424424801,1780873838000,-500.0,0.00016029,2]
[424424789,1780873838000,-500.0,0.00016029,2]
[424424768,1780873838000,-500.0,0.00016029,2]
[424424784,1780873838000,-500.0,0.00016029,2]
[424424770,1780873838000,-500.0,0.00016029,2]
[424424771,1780873838000,-500.0,0.00016029,2]
[424424775,1780873838000,-500.0,0.00016029,2]
[424424773,1780873838000,-500.0,0.00016029,2]
[424424778,1780873838000,-639.05837065,0.00016029,2]
[424424780,1780873838000,-500.0,0.00016029,2]